{"text_format":"1","workbook":"xlsx","n_sheets":5,"sheets":["Title","Podcast Content","BennuModel","Sheet1","Wrap Up"],"not_rendered":{"charts":1,"images":12,"macros":1,"external_links":0,"defined_names":2,"comments":0,"pivot_tables":0},"unopened":[],"bounds":{"document_bytes":16777216,"sheet_cells":100000,"rows_first":2000,"rows_last":500,"rows_between":2000,"halvings":0,"cell_chars":16384,"cell_head_chars":4096},"cells_cut":0,"cells_raw":0,"read":"whole","date_system":"1900"}

{"sheet":"Title","index":0,"n_rows":7,"n_cols":13,"rows_kept":7,"cut":false,"hidden":false,"merged":[]}
[]
[]
[]
[]
[]
[]
[null,null,null,null,null,null,null,null,null,null,null,null,2245]

{"sheet":"Podcast Content","index":1,"n_rows":50,"n_cols":12,"rows_kept":50,"cut":false,"hidden":false,"merged":[]}
["John Campbell Session at Ignite"]
[]
[]
[]
[]
[]
[]
[]
[]
[]
[]
[]
[]
[]
[]
[]
[]
[]
[]
[]
[]
[]
[]
[]
[]
[]
[]
[]
[]
[]
[]
[]
[]
[]
[]
[]
[]
[]
[]
[]
[]
[]
[]
[]
[]
[]
[null,null,null,null,null,null,null,null,null,null,null,3108]
[null,null,null,null,null,null,null,null,null,null,null,42]
[null,null,null,null,null,null,null,null,null,null,null,{"$f":"L48/L47","v":1.3513513513513514E-2}]
[null,null,null,null,null,null,null,null,null,null,null,{"$f":"1/L49","v":74}]

{"sheet":"BennuModel","index":2,"n_rows":179,"n_cols":34,"rows_kept":179,"cut":false,"hidden":false,"merged":[]}
["Chesley et al. (2014) Calculations",null,null,null,null,"Bill's Bad Assumptions","Original","OSIRIS-REx Adjusted",null,null,{"$f":"_xlfn.NORM.DIST(H4,$H$4,$H$5,FALSE)","v":4.2851863670694612E-6},{"$f":"50/K1","v":11668103.955579843},null,null,null,null,null,null,null,null,null,"# of Impacts",{"$f":"SUM(W10:W180)","v":36},null,null,null,null,null,null,null,null,"Describe the results"]
["82 \"keyholes\" - if Bennu here in 2135",null,null,null,null,"Bennu Min",92981,{"$f":"H4-3*H5","v":92982},null,null,null,null,null,null,null,null,null,null,null,null,null,"Chance of imact",{"$f":"100000/W1","v":2777.7777777777778},null,null,null,null,null,null,null,null,"MIN",{"$f":"MAX(1,MIN(AC11:AC110))","v":29}]
["then impact with Earth in 2180-2196",null,null,null,null,"Bennu Max",651571,{"$f":"H4+3*H2","v":651222},null,"Position","X","Y",null,null,null,null,null,null,null,null,null,"Not this",null,null,null,null,null,null,null,null,null,"MAX",{"$f":"MAX(AC11:AC110)","v":67},{"$f":"100000/AG3","v":1492.5373134328358}]
["(there are another 100+ keyholes too small to plot)",null,null,null,null,"Bennu Mean",372276,{"$f":"G22","v":372276},null,1,{"$f":"K5-$H$8","v":92982.000000000276},{"$f":"_xlfn.NORM.DIST(K4,$H$4,$H$5,FALSE)*L$1","v":0.55544982691212019},null,null,null,null,null,null,null,null,null,{"$f":"RANDBETWEEN($H$2,$H$3)","v":219862},{"$f":"_xlfn.FORMULATEXT(V4)","v":"=RANDBETWEEN($H$2,$H$3)"},null,null,null,null,null,null,null,null,"RANGE",{"$f":"MAX(AG3-AG2,10)","v":38}]
["Bennu Location 2135","Y Value","Width (km)",null,null,"Bennu StDev",93098,{"$f":"G5/I10","v":93098},null,2,102291.80000000028,{"$f":"_xlfn.NORM.DIST(K5,$H$4,$H$5,FALSE)*L$1","v":0.74603930345339942},null,null,null,null,null,null,null,null,null,"This",null,null,null,null,null,null,null,null,null,"Bin Size",{"$f":"ROUNDUP(AG4/10,0)","v":4}]
[92981,10,0.17,null,null,null,null,null,null,3,111601.60000000028,0.99205473721852244,null,null,null,null,null,null,null,null,null,{"$f":"_xlfn.NORM.INV(RAND(),$H$4,$H$5)","v":485536.02757568681},{"$f":"_xlfn.FORMULATEXT(V6)","v":"=NORM.INV(RAND(),$H$4,$H$5)"}]
[93280,30,0.32,null,null,null,null,null,null,4,120911.40000000029,1.3060704926959219]
[99162,30,0.25,null,null,"Jump",null,{"$f":"(H5*3)/30","v":9309.7999999999993},null,5,130221.20000000029,1.7023727367299823,null,null,null,null,null,null,null,null,null,"Run the system 100K times",null,null,null,null,null,"Run the 100K model 100 times!"]
[105731,10,0.12,null,null,null,null,null,null,6,139531.00000000029,2.1968466811703884,null,null,null,null,null,null,null,null,null,"Bennu 2135 Location","Impact?",null,null,null,null,null,null,null,null,"Bins","# of Times"]
[105945,40,3.59,null,"Accuracy",null,null,null,1,7,148840.80000000028,2.806738141706707,null,null,null,null,null,null,null,null,null,null,{"$f":"SUM(VLOOKUP(_xlfn.NORM.INV(_xlfn.RANDARRAY(100000),$H$4,$H$5),$N$23:$O$179,2,TRUE))","v":36},null,null,null,null,null,{"$f":"W10","v":36},null,null,0,{"$f":"FREQUENCY(AC11:AC110,AF10:AF20)","v":0},{"$f":"IFERROR(100000/AF10,\"None\")","v":"None"}]
[148127,20,0.19,null,"(1 to 25)",null,null,null,null,8,158150.60000000027,3.5502676869818726,null,null,null,null,null,null,null,null,null,null,null,null,null,null,null,null,50,null,null,{"$f":"AG2","v":29},3,{"$f":"IFERROR(100000/AF11,\"None\")","v":3448.2758620689656}]
[153125,50,6.29,null,"Shift",null,null,null,50,9,167460.40000000026,4.4460808729693451,null,null,null,null,null,null,null,null,null,null,null,null,null,null,null,null,59,null,null,{"$f":"AF11+$AG$5","v":33},3,3030.3030303030305]
[153481,20,0.21,null,"(0 to 100)",null,null,null,null,10,176770.20000000024,5.5125262652242899,null,null,null,null,null,null,null,null,null,null,null,null,null,null,null,null,29,null,null,{"$f":"AF12+$AG$5","v":37},9,2702.7027027027025]
[161203,40,1.53,null,null,"Three Std Dev",{"$f":"3*H5","v":279294},null,null,11,186080.00000000023,6.7667641618306673,null,null,null,null,null,null,null,null,null,null,null,null,null,null,null,null,45,null,null,41,16,2439.0243902439024]
[162322,10,0.15,{"$f":"AVERAGE(A6,A83)","v":372276},null,"Min from Center",{"$f":"372276-G14","v":92982},null,null,12,195389.80000000022,8.2237228288577793,null,null,null,null,null,null,null,null,null,null,null,null,null,null,null,null,47,null,null,45,28,2222.2222222222222]
[171554,40,5.15,{"$f":"D15/6","v":62046},null,"Max from Center",{"$f":"372276+G14","v":651570},{"$f":"+A83-G16","v":1},null,13,204699.60000000021,9.8949349541807727,null,null,null,null,null,null,null,null,null,null,null,null,null,null,null,null,52,null,null,49,21,2040.8163265306123]
[171842,10,0.17,101643,null,"Extra Left",{"$f":"MAX(0,G15-92981)","v":1},{"$f":"+G15-G17","v":92981},null,14,214009.4000000002,11.787303827793219,null,null,null,null,null,null,null,null,null,null,null,null,null,null,null,null,47,null,null,53,12,1886.7924528301887]
[174357,40,0.66,{"$f":"+D15/D17","v":3.6625837490038666},null,"Extra Right",{"$f":"A83-G16","v":1},null,null,15,223319.20000000019,13.901865022659747,null,null,null,null,null,null,null,null,null,null,null,null,null,null,null,null,51,null,null,57,6,1754.3859649122808]
[174935,30,0.4,null,null,"Delta from 50",{"$f":"I12-50","v":0},null,null,16,232629.00000000017,16.23262336791753,null,null,null,null,null,null,null,null,null,null,null,null,null,null,null,null,39,null,null,61,1,1639.344262295082]
[177766,20,0.17,null,null,"Pctage",{"$f":"G19/50","v":0},null,null,17,241938.80000000016,18.76555494257002,null,"Keyhole Table",null,null,null,null,null,null,null,null,null,null,null,null,null,null,43,null,null,65,0,1538.4615384615386]
[185793,20,0.19,null,null,"Delta",{"$f":"G20*G17","v":0},null,null,18,251248.60000000015,21.477867910537004,null,null,null,null,null,null,null,null,null,null,null,null,null,null,null,null,37,null,null,null,1,"None"]
[186415,50,19.84,null,null,"Adj Mean",{"$f":"G4+G21","v":372276},null,null,19,260558.40000000014,24.337612797998627,null,"Start","Impact",null,null,null,null,null,null,null,null,null,null,null,null,null,37]
[186996,20,0.21,null,null,null,null,null,null,20,269868.20000000013,27.303721331985518,null,-9999999,0,null,null,null,null,null,null,null,null,null,null,null,null,null,56]
[191883,20,0.2,null,null,"Six Std",{"$f":"K64-K4","v":558588.00000000023},null,null,21,279178.00000000012,30.326532985631712,null,92980.914999999994,1,null,null,null,null,null,null,null,null,null,null,null,null,null,45]
[208524,30,0.53,null,null,"Total Range",{"$f":"A83-A6","v":558590},null,null,22,288487.8000000001,33.348840542923753,null,92981.085000000006,0,null,null,null,null,null,null,null,null,null,null,null,null,null,44]
[211276,10,0.11,null,null,"Extra",{"$f":"G25-G24","v":1.9999999997671694},null,null,23,297797.60000000009,36.307451853684576,null,93279.84,1,null,null,null,null,null,null,null,null,null,null,null,null,null,39]
[235014,20,0.17,null,null,"Adj",{"$f":"+G26*G20/2","v":0},null,null,24,307107.40000000008,39.13522691209343,null,93280.16,0,null,null,null,null,null,null,null,null,null,null,null,null,null,45]
[271070,50,13.32,null,null,"Adj Mean",{"$f":"372276+G27","v":372276},null,null,25,316417.20000000007,41.763510570563618,null,99161.875,1,null,null,null,null,null,null,null,null,null,null,null,null,null,45]
[272823,10,0.12,null,null,null,null,null,null,26,325727.00000000006,44.124845129229783,null,99162.125,0,null,null,null,null,null,null,null,null,null,null,null,null,null,41]
[273950,10,0.11,null,null,"Hold StdDev",101643.82125864399,null,null,27,335036.80000000005,46.155817319331803,null,105730.94,1,null,null,null,null,null,null,null,null,null,null,null,null,null,47]
[274243,30,0.21,null,null,null,null,null,null,28,344346.60000000003,47.799874091654999,null,105731.06,0,null,null,null,null,null,null,null,null,null,null,null,null,null,30]
[275569,40,0.77,null,null,null,null,null,null,29,353656.4,49.009933665337762,null,105943.205,1,null,null,null,null,null,null,null,null,null,null,null,null,null,29]
[276541,20,0.2,null,null,null,null,null,null,30,{"$f":"K34-$H$8","v":362966.2},49.750623959634119,null,105946.795,0,null,null,null,null,null,null,null,null,null,null,null,null,null,48]
[278479,40,2.76,null,null,null,null,null,null,31,{"$f":"H4","v":372276},50,null,148126.905,1,null,null,null,null,null,null,null,null,null,null,null,null,null,45]
[279096,20,0.18,null,null,null,null,null,null,32,{"$f":"K34+$H$8","v":381585.8},49.750623959634119,null,148127.095,0,null,null,null,null,null,null,null,null,null,null,null,null,null,49]
[279590,40,4.96,null,null,null,null,null,null,33,{"$f":"K35+$H$8","v":390895.6},49.009933665337762,null,153121.85500000001,1,null,null,null,null,null,null,null,null,null,null,null,null,null,44]
[295318,50,9.42,null,null,null,null,null,null,34,400205.39999999997,47.799874091654999,null,153128.14499999999,0,null,null,null,null,null,null,null,null,null,null,null,null,null,37]
[302940,20,0.2,null,null,null,null,null,null,35,409515.19999999995,46.155817319331803,null,153480.89499999999,1,null,null,null,null,null,null,null,null,null,null,null,null,null,41]
[316352,40,3.48,null,null,null,null,null,null,36,418824.99999999994,44.124845129229783,null,153481.10500000001,0,null,null,null,null,null,null,null,null,null,null,null,null,null,47]
[316680,20,0.19,null,null,null,null,null,null,37,428134.79999999993,41.763510570563618,null,161202.23499999999,1,null,null,null,null,null,null,null,null,null,null,null,null,null,32]
[326599,20,0.19,null,null,null,null,null,null,38,437444.59999999992,39.13522691209343,null,161203.76500000001,0,null,null,null,null,null,null,null,null,null,null,null,null,null,42]
[339506,40,2.73,null,null,null,null,null,null,39,446754.39999999991,36.307451853684576,null,162321.92499999999,1,null,null,null,null,null,null,null,null,null,null,null,null,null,52]
[339838,10,0.13,null,null,null,null,null,null,40,456064.1999999999,33.348840542923753,null,162322.07500000001,0,null,null,null,null,null,null,null,null,null,null,null,null,null,44]
[343541,20,0.17,null,null,null,null,null,null,41,465373.99999999988,30.326532985631712,null,171551.42499999999,1,null,null,null,null,null,null,null,null,null,null,null,null,null,29]
[343783,10,0.11,null,null,null,null,null,null,42,474683.79999999987,27.303721331985518,null,171556.57500000001,0,null,null,null,null,null,null,null,null,null,null,null,null,null,37]
[347699,40,0.78,null,null,null,null,null,null,43,483993.59999999986,24.337612797998627,null,171841.91500000001,1,null,null,null,null,null,null,null,null,null,null,null,null,null,41]
[349704,40,1.8,null,null,null,null,null,null,44,493303.39999999985,21.477867910537004,null,171842.08499999999,0,null,null,null,null,null,null,null,null,null,null,null,null,null,46]
[367729,30,0.32,null,null,null,null,null,null,45,502613.19999999984,18.76555494257002,null,174356.67,1,null,null,null,null,null,null,null,null,null,null,null,null,null,50]
[368877,50,16.670000000000002,null,null,null,null,null,null,46,511922.99999999983,16.23262336791753,null,174357.33,0,null,null,null,null,null,null,null,null,null,null,null,null,null,41]
[370007,30,0.56000000000000005,null,null,null,null,null,null,47,521232.79999999981,13.901865022659747,null,174934.8,1,null,null,null,null,null,null,null,null,null,null,null,null,null,43]
[391326,30,0.6,null,null,null,null,null,null,48,530542.59999999986,11.78730382779321,null,174935.2,0,null,null,null,null,null,null,null,null,null,null,null,null,null,51]
[392308,50,5.97,null,null,null,null,null,null,49,539852.39999999991,9.8949349541807514,null,177765.91500000001,1,null,null,null,null,null,null,null,null,null,null,null,null,null,55]
[393200,10,0.11,null,null,null,null,null,null,50,549162.19999999995,8.2237228288577544,null,177766.08499999999,0,null,null,null,null,null,null,null,null,null,null,null,null,null,44]
[405893,30,0.64,null,null,null,null,null,null,51,558472,6.7667641618306344,null,185792.905,1,null,null,null,null,null,null,null,null,null,null,null,null,null,38]
[429187,30,0.51,null,null,null,null,null,null,52,567781.80000000005,5.5125262652242562,null,185793.095,0,null,null,null,null,null,null,null,null,null,null,null,null,null,46]
[430234,20,0.2,null,null,null,null,null,null,53,577091.60000000009,4.4460808729693078,null,186405.08,1,null,null,null,null,null,null,null,null,null,null,null,null,null,40]
[449272,50,12.23,null,null,null,null,null,null,54,586401.40000000014,3.5502676869818357,null,186424.92,0,null,null,null,null,null,null,null,null,null,null,null,null,null,46]
[459392,10,0.12,null,null,null,null,null,null,55,595711.20000000019,2.806738141706671,null,186995.89499999999,1,null,null,null,null,null,null,null,null,null,null,null,null,null,41]
[475391,50,7.74,null,null,null,null,null,null,56,605021.00000000023,2.196846681170356,null,186996.10500000001,0,null,null,null,null,null,null,null,null,null,null,null,null,null,43]
[479545,50,9.5399999999999991,null,null,null,null,null,null,57,614330.80000000028,1.702372736729953,null,191882.9,1,null,null,null,null,null,null,null,null,null,null,null,null,null,41]
[486578,50,25.51,null,null,null,null,null,null,58,623640.60000000033,1.3060704926959001,null,191883.1,0,null,null,null,null,null,null,null,null,null,null,null,null,null,55]
[511097,50,24.9,null,null,null,null,null,null,59,632950.40000000037,0.99205473721850368,null,208523.73499999999,1,null,null,null,null,null,null,null,null,null,null,null,null,null,45]
[517881,40,0.75,null,null,null,null,null,null,60,642260.20000000042,0.74603930345338265,null,208524.26500000001,0,null,null,null,null,null,null,null,null,null,null,null,null,null,38]
[527510,40,0.89,null,null,null,null,null,null,61,651570.00000000047,0.55544982691210742,null,211275.94500000001,1,null,null,null,null,null,null,null,null,null,null,null,null,null,39]
[528840,30,0.65,null,null,null,null,null,null,null,null,null,null,211276.05499999999,0,null,null,null,null,null,null,null,null,null,null,null,null,null,43]
[534125,20,0.2,null,null,null,null,null,null,null,null,null,null,235013.91500000001,1,null,null,null,null,null,null,null,null,null,null,null,null,null,42]
[534310,20,0.19,null,null,null,null,null,null,null,null,null,null,235014.08499999999,0,null,null,null,null,null,null,null,null,null,null,null,null,null,47]
[534527,30,0.45,null,null,null,null,null,null,null,null,null,null,271063.34000000003,1,null,null,null,null,null,null,null,null,null,null,null,null,null,37]
[536801,10,0.13,null,null,null,null,null,null,null,null,null,null,271076.65999999997,0,null,null,null,null,null,null,null,null,null,null,null,null,null,45]
[536823,30,0.21,null,null,null,null,null,null,null,null,null,null,272822.94,1,null,null,null,null,null,null,null,null,null,null,null,null,null,42]
[537259,10,0.12,null,null,null,null,null,null,null,null,null,null,272823.06,0,null,null,null,null,null,null,null,null,null,null,null,null,null,52]
[537324,10,0.11,null,null,null,null,null,null,null,null,null,null,273949.94500000001,1,null,null,null,null,null,null,null,null,null,null,null,null,null,51]
[539780,30,0.23,null,null,null,null,null,null,null,null,null,null,273950.05499999999,0,null,null,null,null,null,null,null,null,null,null,null,null,null,53]
[541921,40,0.77,null,null,null,null,null,null,null,null,null,null,274242.89500000002,1,null,null,null,null,null,null,null,null,null,null,null,null,null,40]
[542397,40,1.72,null,null,null,null,null,null,null,null,null,null,274243.10499999998,0,null,null,null,null,null,null,null,null,null,null,null,null,null,47]
[543753,30,0.37,null,null,null,null,null,null,null,null,null,null,275568.61499999999,1,null,null,null,null,null,null,null,null,null,null,null,null,null,48]
[545747,30,0.26,null,null,null,null,null,null,null,null,null,null,275569.38500000001,0,null,null,null,null,null,null,null,null,null,null,null,null,null,67]
[558169,50,11.57,null,null,null,null,null,null,null,null,null,null,276540.90000000002,1,null,null,null,null,null,null,null,null,null,null,null,null,null,56]
[561278,50,12.31,null,null,null,null,null,null,null,null,null,null,276541.09999999998,0,null,null,null,null,null,null,null,null,null,null,null,null,null,42]
[565865,50,20.2,null,null,null,null,null,null,null,null,null,null,278477.62,1,null,null,null,null,null,null,null,null,null,null,null,null,null,42]
[618399,50,17.45,null,null,null,null,null,null,null,null,null,null,278480.38,0,null,null,null,null,null,null,null,null,null,null,null,null,null,54]
[636299,50,54.23,null,null,null,null,null,null,null,null,null,null,279095.90999999997,1,null,null,null,null,null,null,null,null,null,null,null,null,null,36]
[651571,40,4.3499999999999996,null,null,null,null,null,null,null,null,null,null,279096.09000000003,0,null,null,null,null,null,null,null,null,null,null,null,null,null,46]
[null,null,null,null,null,null,null,null,null,null,null,null,null,279587.52,1,null,null,null,null,null,null,null,null,null,null,null,null,null,45]
[null,null,null,null,null,null,null,null,null,null,null,null,null,279592.48,0,null,null,null,null,null,null,null,null,null,null,null,null,null,36]
[null,null,null,null,null,null,null,null,null,null,null,null,null,295313.28999999998,1,null,null,null,null,null,null,null,null,null,null,null,null,null,49]
[null,null,null,null,null,null,null,null,null,null,null,null,null,295322.71000000002,0,null,null,null,null,null,null,null,null,null,null,null,null,null,45]
[null,null,null,null,null,null,null,null,null,null,null,null,null,302939.90000000002,1,null,null,null,null,null,null,null,null,null,null,null,null,null,52]
[null,null,null,null,null,null,null,null,null,null,null,null,null,302940.09999999998,0,null,null,null,null,null,null,null,null,null,null,null,null,null,47]
[null,null,null,null,null,null,null,null,null,null,null,null,null,316350.26,1,null,null,null,null,null,null,null,null,null,null,null,null,null,45]
[null,null,null,null,null,null,null,null,null,null,null,null,null,316353.74,0,null,null,null,null,null,null,null,null,null,null,null,null,null,41]
[null,null,null,null,null,null,null,null,null,null,null,null,null,316679.90500000003,1,null,null,null,null,null,null,null,null,null,null,null,null,null,36]
[null,null,null,null,null,null,null,null,null,null,null,null,null,316680.09499999997,0,null,null,null,null,null,null,null,null,null,null,null,null,null,47]
[null,null,null,null,null,null,null,null,null,null,null,null,null,326598.90500000003,1,null,null,null,null,null,null,null,null,null,null,null,null,null,52]
[null,null,null,null,null,null,null,null,null,null,null,null,null,326599.09499999997,0,null,null,null,null,null,null,null,null,null,null,null,null,null,46]
[null,null,null,null,null,null,null,null,null,null,null,null,null,339504.63500000001,1,null,null,null,null,null,null,null,null,null,null,null,null,null,44]
[null,null,null,null,null,null,null,null,null,null,null,null,null,339507.36499999999,0,null,null,null,null,null,null,null,null,null,null,null,null,null,54]
[null,null,null,null,null,null,null,null,null,null,null,null,null,339837.935,1,null,null,null,null,null,null,null,null,null,null,null,null,null,49]
[null,null,null,null,null,null,null,null,null,null,null,null,null,339838.065,0,null,null,null,null,null,null,null,null,null,null,null,null,null,47]
[null,null,null,null,null,null,null,null,null,null,null,null,null,343540.91499999998,1,null,null,null,null,null,null,null,null,null,null,null,null,null,42]
[null,null,null,null,null,null,null,null,null,null,null,null,null,343541.08500000002,0,null,null,null,null,null,null,null,null,null,null,null,null,null,47]
[null,null,null,null,null,null,null,null,null,null,null,null,null,343782.94500000001,1,null,null,null,null,null,null,null,null,null,null,null,null,null,40]
[null,null,null,null,null,null,null,null,null,null,null,null,null,343783.05499999999,0,null,null,null,null,null,null,null,null,null,null,null,null,null,40]
[null,null,null,null,null,null,null,null,null,null,null,null,null,347698.61,1,null,null,null,null,null,null,null,null,null,null,null,null,null,37]
[null,null,null,null,null,null,null,null,null,null,null,null,null,347699.39,0,null,null,null,null,null,null,null,null,null,null,null,null,null,42]
[null,null,null,null,null,null,null,null,null,null,null,null,null,349703.1,1,null,null,null,null,null,null,null,null,null,null,null,null,null,50]
[null,null,null,null,null,null,null,null,null,null,null,null,null,349704.9,0,null,null,null,null,null,null,null,null,null,null,null,null,null,49]
[null,null,null,null,null,null,null,null,null,null,null,null,null,367728.84,1,null,null,null,null,null,null,null,null,null,null,null,null,null,43]
[null,null,null,null,null,null,null,null,null,null,null,null,null,367729.16,0,null,null,null,null,null,null,null,null,null,null,null,null,null,43]
[null,null,null,null,null,null,null,null,null,null,null,null,null,368868.66499999998,1,null,null,null,null,null,null,null,null,null,null,null,null,null,31]
[null,null,null,null,null,null,null,null,null,null,null,null,null,368885.33500000002,0]
[null,null,null,null,null,null,null,null,null,null,null,null,null,370006.72,1]
[null,null,null,null,null,null,null,null,null,null,null,null,null,370007.28,0]
[null,null,null,null,null,null,null,null,null,null,null,null,null,391325.7,1]
[null,null,null,null,null,null,null,null,null,null,null,null,null,391326.3,0]
[null,null,null,null,null,null,null,null,null,null,null,null,null,392305.01500000001,1]
[null,null,null,null,null,null,null,null,null,null,null,null,null,392310.98499999999,0]
[null,null,null,null,null,null,null,null,null,null,null,null,null,393199.94500000001,1]
[null,null,null,null,null,null,null,null,null,null,null,null,null,393200.05499999999,0]
[null,null,null,null,null,null,null,null,null,null,null,null,null,405892.68,1]
[null,null,null,null,null,null,null,null,null,null,null,null,null,405893.32,0]
[null,null,null,null,null,null,null,null,null,null,null,null,null,429186.745,1]
[null,null,null,null,null,null,null,null,null,null,null,null,null,429187.255,0]
[null,null,null,null,null,null,null,null,null,null,null,null,null,430233.9,1]
[null,null,null,null,null,null,null,null,null,null,null,null,null,430234.1,0]
[null,null,null,null,null,null,null,null,null,null,null,null,null,449265.88500000001,1]
[null,null,null,null,null,null,null,null,null,null,null,null,null,449278.11499999999,0]
[null,null,null,null,null,null,null,null,null,null,null,null,null,459391.94,1]
[null,null,null,null,null,null,null,null,null,null,null,null,null,459392.06,0]
[null,null,null,null,null,null,null,null,null,null,null,null,null,475387.13,1]
[null,null,null,null,null,null,null,null,null,null,null,null,null,475394.87,0]
[null,null,null,null,null,null,null,null,null,null,null,null,null,479540.23,1]
[null,null,null,null,null,null,null,null,null,null,null,null,null,479549.77,0]
[null,null,null,null,null,null,null,null,null,null,null,null,null,486565.245,1]
[null,null,null,null,null,null,null,null,null,null,null,null,null,486590.755,0]
[null,null,null,null,null,null,null,null,null,null,null,null,null,511084.55,1]
[null,null,null,null,null,null,null,null,null,null,null,null,null,511109.45,0]
[null,null,null,null,null,null,null,null,null,null,null,null,null,517880.625,1]
[null,null,null,null,null,null,null,null,null,null,null,null,null,517881.375,0]
[null,null,null,null,null,null,null,null,null,null,null,null,null,527509.55500000005,1]
[null,null,null,null,null,null,null,null,null,null,null,null,null,527510.44499999995,0]
[null,null,null,null,null,null,null,null,null,null,null,null,null,528839.67500000005,1]
[null,null,null,null,null,null,null,null,null,null,null,null,null,528840.32499999995,0]
[null,null,null,null,null,null,null,null,null,null,null,null,null,534124.9,1]
[null,null,null,null,null,null,null,null,null,null,null,null,null,534125.1,0]
[null,null,null,null,null,null,null,null,null,null,null,null,null,534309.90500000003,1]
[null,null,null,null,null,null,null,null,null,null,null,null,null,534310.09499999997,0]
[null,null,null,null,null,null,null,null,null,null,null,null,null,534526.77500000002,1]
[null,null,null,null,null,null,null,null,null,null,null,null,null,534527.22499999998,0]
[null,null,null,null,null,null,null,null,null,null,null,null,null,536800.93500000006,1]
[null,null,null,null,null,null,null,null,null,null,null,null,null,536801.06499999994,0]
[null,null,null,null,null,null,null,null,null,null,null,null,null,536822.89500000002,1]
[null,null,null,null,null,null,null,null,null,null,null,null,null,536823.10499999998,0]
[null,null,null,null,null,null,null,null,null,null,null,null,null,537258.93999999994,1]
[null,null,null,null,null,null,null,null,null,null,null,null,null,537259.06000000006,0]
[null,null,null,null,null,null,null,null,null,null,null,null,null,537323.94499999995,1]
[null,null,null,null,null,null,null,null,null,null,null,null,null,537324.05500000005,0]
[null,null,null,null,null,null,null,null,null,null,null,null,null,539779.88500000001,1]
[null,null,null,null,null,null,null,null,null,null,null,null,null,539780.11499999999,0]
[null,null,null,null,null,null,null,null,null,null,null,null,null,541920.61499999999,1]
[null,null,null,null,null,null,null,null,null,null,null,null,null,541921.38500000001,0]
[null,null,null,null,null,null,null,null,null,null,null,null,null,542396.14,1]
[null,null,null,null,null,null,null,null,null,null,null,null,null,542397.86,0]
[null,null,null,null,null,null,null,null,null,null,null,null,null,543752.81499999994,1]
[null,null,null,null,null,null,null,null,null,null,null,null,null,543753.18500000006,0]
[null,null,null,null,null,null,null,null,null,null,null,null,null,545746.87,1]
[null,null,null,null,null,null,null,null,null,null,null,null,null,545747.13,0]
[null,null,null,null,null,null,null,null,null,null,null,null,null,558163.21499999997,1]
[null,null,null,null,null,null,null,null,null,null,null,null,null,558174.78500000003,0]
[null,null,null,null,null,null,null,null,null,null,null,null,null,561271.84499999997,1]
[null,null,null,null,null,null,null,null,null,null,null,null,null,561284.15500000003,0]
[null,null,null,null,null,null,null,null,null,null,null,null,null,565854.9,1]
[null,null,null,null,null,null,null,null,null,null,null,null,null,565875.1,0]
[null,null,null,null,null,null,null,null,null,null,null,null,null,618390.27500000002,1]
[null,null,null,null,null,null,null,null,null,null,null,null,null,618407.72499999998,0]
[null,null,null,null,null,null,null,null,null,null,null,null,null,636271.88500000001,1]
[null,null,null,null,null,null,null,null,null,null,null,null,null,636326.11499999999,0]
[null,null,null,null,null,null,null,null,null,null,null,null,null,651568.82499999995,1]
[null,null,null,null,null,null,null,null,null,null,null,null,null,651573.17500000005,0]

{"sheet":"Sheet1","index":3,"n_rows":1,"n_cols":1,"rows_kept":1,"cut":false,"hidden":false,"merged":[]}
["Revisiting Excel Hash"]

{"sheet":"Wrap Up","index":4,"n_rows":19,"n_cols":6,"rows_kept":19,"cut":false,"hidden":false,"merged":[]}
["Topics in this Episode"]
[]
[null,"Forecast model with 100,000 RAND, NORM.INV, VLOOKUP & 1 SUM"]
[null,"Replaced with 1 formula using RANDARRAY(100000)"]
[null,null,"Average","Trial 1","Trial 2","Trial 3"]
[null,"200K Cells",{"$f":"AVERAGE(D6:F6)","v":10.76},10.8,10.75,10.73]
[null,"1 Formula",{"$f":"AVERAGE(D7:F7)","v":5.373333333333334},5.3,5.43,5.39]
[null,null,{"$f":"C7/C6","v":0.49938042131350691}]
[]
[]
[]
[]
[]
[null,"To download this workbook: https://www.mrexcel.com/download-center/2018/10/streamlining-the-bennu-model-with-arrays.xlsx"]
[null,"List of upcoming seminars: https://www.mrexcel.com/press-appearances/"]
[]
[null,"To download the workbook from today's video, visit the URL in the YouTube description"]
[]
[null,"Title Image Photo Credit: Photo by Roseanna Smith on Unsplash"]